bitfinex/quotes_BTCUSD_20241028
["timestamp","ask_amount","ask_price","bid_price","bid_amount"]
[1730128549943,0.007646,68759.0,68758.0,0.775547]
[1730128550147,0.007646,68759.0,68758.0,0.94641878]
[1730128550395,0.021646,68759.0,68758.0,0.94741878]
[1730128552751,0.021646,68759.0,68758.0,0.776547]
[1730128555825,0.021646,68759.0,68758.0,0.63111]
[1730128556043,0.021646,68759.0,68758.0,0.776547]
[1730128556500,0.021646,68759.0,68758.0,0.63111]
[1730128558295,0.026646,68759.0,68758.0,0.55361]
[1730128559180,0.172081,68759.0,68758.0,0.55361]
[1730128559395,0.026646,68759.0,68758.0,0.55361]
[1730128560693,0.021646,68759.0,68758.0,0.55361]
[1730128562521,0.031646,68759.0,68758.0,0.45731]
[1730128563200,0.026646,68759.0,68758.0,0.45731]
[1730128563431,0.031646,68759.0,68758.0,0.45731]
[1730128563650,0.026646,68759.0,68758.0,0.45731]
[1730128564319,0.177081,68759.0,68758.0,0.45731]
[1730128564932,0.031646,68759.0,68758.0,0.45731]
[1730128565168,0.177081,68759.0,68758.0,0.45731]
[1730128568023,0.031646,68759.0,68758.0,0.45731]
[1730128568675,0.021646,68759.0,68758.0,0.45731]
[1730128568885,0.021646,68759.0,68758.0,0.699647]
[1730128569090,0.021646,68759.0,68758.0,0.62941]
[1730128569331,0.026646,68759.0,68758.0,0.62941]
[1730128569982,0.021646,68759.0,68758.0,0.62941]
[1730128570184,0.021646,68759.0,68758.0,0.774847]
[1730128570390,0.021646,68759.0,68758.0,0.62941]
[1730128570612,0.026646,68759.0,68758.0,0.62941]
[1730128571703,0.026646,68759.0,68758.0,0.94571878]
[1730128571704,0.021646,68759.0,68758.0,0.94571878]
[1730128571914,0.021646,68759.0,68758.0,0.774847]
[1730128572816,0.021646,68759.0,68758.0,0.94571878]
[1730128574899,0.007646,68759.0,68758.0,0.94471878]
[1730128575123,0.001646,68759.0,68758.0,0.94371878]
[1730128575365,0.001646,68759.0,68758.0,0.95371878]
[1730128576062,0.001646,68759.0,68758.0,0.95871878]
[1730128576285,0.002646,68759.0,68758.0,0.96971878]
[1730128578112,0.002646,68759.0,68758.0,0.96471878]
[1730128578336,0.002646,68759.0,68758.0,0.96971878]
[1730128578544,0.002646,68759.0,68758.0,0.798847]
[1730128578766,0.002646,68759.0,68758.0,0.64841]
[1730128579215,0.002646,68759.0,68758.0,0.57321]
[1730128579443,0.002646,68759.0,68758.0,0.47631]
[1730128579983,0.153081,68759.0,68758.0,0.47631]
[1730128580399,0.007646,68759.0,68758.0,0.47631]
[1730128580604,0.158081,68759.0,68758.0,0.47631]
[1730128581024,0.157081,68759.0,68758.0,0.46531]
[1730128581493,0.49245659,68759.0,68758.0,0.46631]
[1730128581971,0.32158481,68759.0,68758.0,0.46631]
[1730128582183,0.32158481,68759.0,68758.0,0.45631]
[1730128582390,0.32758481,68759.0,68758.0,0.45731]
[1730128583030,0.32158481,68759.0,68758.0,0.45631]
[1730128583468,0.31458481,68759.0,68758.0,0.45631]
[1730128583708,0.59045659,68759.0,68758.0,0.45631]
[1730128583938,0.43358481,68759.0,68758.0,0.45631]
[1730128584143,0.41458481,68759.0,68758.0,0.45631]
[1730128584585,0.42858481,68759.0,68758.0,0.45631]
[1730128585042,0.32858481,68759.0,68758.0,0.45631]
[1730128585273,0.027646,68759.0,68758.0,0.45631]
[1730128588473,0.022646,68759.0,68758.0,0.55151]
[1730128589349,0.173081,68759.0,68758.0,0.45631]
[1730128589560,0.6250955,68759.0,68758.0,0.45631]
[1730128589785,0.87842837,68759.0,68758.0,0.45631]
[1730128590022,1.43827837,68759.0,68758.0,0.45631]
[1730128590265,1.54656346,68759.0,68758.0,0.45631]
[1730128590485,1.52487786,68759.0,68758.0,0.45631]
[1730128590700,1.26740659,68759.0,68758.0,0.45631]
[1730128590927,1.25340659,68759.0,68758.0,0.45631]
[1730128591150,1.33232408,68759.0,68758.0,0.45631]
[1730128591377,1.32532408,68759.0,68758.0,0.45531]
[1730128591601,1.26040659,68759.0,68758.0,0.45531]
[1730128591816,1.44527837,68759.0,68758.0,0.45631]
[1730128592023,1.33929962,68759.0,68758.0,0.45631]
[1730128592228,1.33929962,68759.0,68758.0,0.45531]
[1730128592229,1.26040659,68759.0,68758.0,0.45531]
[1730128592438,1.43127837,68759.0,68758.0,0.45531]
[1730128592653,1.59578218,68759.0,68758.0,0.45631]
[1730128592882,0.295439,68757.0,68756.0,0.000823]
[1730128593095,3.36090386,68757.0,68756.0,0.000823]
[1730128593325,3.13630981,68757.0,68756.0,0.000823]
[1730128593566,3.28681362,68757.0,68756.0,0.000823]
[1730128594009,3.33005677,68757.0,68756.0,0.000823]
[1730128594244,3.35285367,68757.0,68756.0,0.000823]
[1730128594669,3.32361052,68757.0,68756.0,0.000823]
[1730128595165,0.58134878,68739.0,68738.0,0.2176026]
[1730128595372,0.73185259,68739.0,68738.0,0.2176026]
[1730128595791,0.73185259,68739.0,68727.0,0.0991]
[1730128595792,0.150492,68732.0,68727.0,0.0991]
[1730128596017,0.150492,68732.0,68724.0,0.2176026]
[1730128596018,0.01,68725.0,68724.0,0.2176026]
[1730128596232,0.30601081,68725.0,68724.0,0.2176026]
[1730128596472,0.005,68721.0,68718.0,0.1013]
[1730128596696,0.01,68719.0,68718.0,0.1013]
[1730128596938,0.15552,68719.0,68718.0,0.1013]
[1730128597155,0.15552,68719.0,68715.0,0.077923]
[1730128597156,0.15552,68719.0,68715.0,0.000823]
[1730128597157,0.155526,68716.0,68715.0,0.000823]
[1730128597397,0.72796464,68716.0,68715.0,0.000823]
[1730128597618,0.86340735,68716.0,68715.0,0.000823]
[1730128598094,0.73190159,68716.0,68715.0,0.000823]
[1730128598305,0.56102981,68716.0,68715.0,0.000823]
[1730128598519,0.30602981,68716.0,68715.0,0.000823]
[1730128599216,0.32002981,68716.0,68715.0,0.001823]
[1730128599672,0.33402981,68716.0,68715.0,0.001823]
[1730128599884,0.30602981,68716.0,68715.0,0.000823]
[1730128600100,0.32883504,68716.0,68715.0,0.000823]
[1730128600349,0.34283504,68716.0,68715.0,0.000823]
[1730128600588,0.32883504,68716.0,68715.0,0.000823]
[1730128601013,0.34283504,68716.0,68715.0,0.000823]
[1730128601239,0.34283504,68716.0,68715.0,0.001823]
[1730128601240,0.35683504,68716.0,68715.0,0.001823]
[1730128601468,0.35683504,68716.0,68715.0,0.078323]
[1730128601469,0.05080523,68716.0,68715.0,0.078323]
[1730128601678,0.028,68716.0,68715.0,0.078323]
[1730128602110,0.164526,68716.0,68715.0,0.000823]
[1730128602320,0.164526,68716.0,68715.0,0.001823]
[1730128602759,0.178526,68716.0,68715.0,0.001823]
[1730128602981,0.019,68716.0,68715.0,0.001823]
[1730128603205,0.164526,68716.0,68715.0,0.001823]
[1730128603445,0.150526,68716.0,68715.0,0.000823]
[1730128603900,0.019,68716.0,68715.0,0.000823]
[1730128604366,0.150526,68716.0,68715.0,0.000823]
[1730128604589,0.005,68716.0,68715.0,0.000823]
[1730128605529,0.005,68716.0,68715.0,0.002823]
[1730128605763,0.019,68716.0,68715.0,0.002823]
[1730128605984,0.019,68716.0,68715.0,0.000823]
[1730128605985,0.005,68716.0,68715.0,0.000823]
[1730128606209,0.019,68716.0,68715.0,0.000823]
[1730128606423,0.028,68716.0,68715.0,0.147351]
[1730128607091,0.01,68723.0,68716.0,0.291053]
[1730128607330,0.01,68723.0,68722.0,0.17087178]
[1730128607772,0.005,68723.0,68722.0,0.17087178]
[1730128608004,0.01,68723.0,68722.0,0.17087178]
[1730128608427,0.005,68724.0,68722.0,0.17087178]
[1730128608863,0.005,68723.0,68722.0,0.17087178]
[1730128609091,0.01,68723.0,68722.0,0.17087178]
[1730128609298,0.024,68723.0,68722.0,0.17187178]
[1730128609513,0.02182,68723.0,68722.0,0.001]
[1730128609731,0.167331,68723.0,68722.0,0.001]
[1730128609953,0.02182,68723.0,68722.0,0.001]
[1730128610153,0.03582,68723.0,68722.0,0.001]
[1730128610327,0.03082,68723.0,68722.0,0.001]
[1730128610532,0.03582,68723.0,68722.0,0.001]
[1730128610976,0.181331,68723.0,68722.0,0.001]
[1730128611176,0.03582,68723.0,68722.0,0.001]
[1730128613193,0.181331,68723.0,68722.0,0.001]
[1730128613848,0.33183481,68723.0,68722.0,0.001]
[1730128614052,0.18632381,68723.0,68722.0,0.001]
[1730128614264,0.33183481,68723.0,68722.0,0.001]
[1730128614700,0.63582671,68723.0,68722.0,0.001]
[1730128615134,0.58183481,68723.0,68722.0,0.001]
[1730128616461,0.005,68714.0,68713.0,0.17087178]
[1730128616680,0.15053,68714.0,68713.0,0.17087178]
[1730128617542,0.296061,68714.0,68710.0,0.073323]
[1730128617961,0.005,68711.0,68710.0,0.073323]
[1730128619547,0.006,68711.0,68710.0,0.073323]
[1730128619983,0.007,68711.0,68710.0,0.079323]
[1730128620420,0.006,68711.0,68710.0,0.073323]
[1730128620868,0.151537,68711.0,68710.0,0.073323]
[1730128621089,0.006,68711.0,68710.0,0.073323]
[1730128621320,0.006,68711.0,68705.0,0.26827178]
[1730128621321,0.16138686,68711.0,68705.0,0.0974]
[1730128621531,0.16138686,68711.0,68702.0,0.000823]
[1730128621532,0.00782,68706.0,68702.0,0.000823]
[1730128621742,0.145554,68703.0,68702.0,0.000823]
[1730128621968,0.148374,68703.0,68702.0,0.000823]
[1730128622198,0.00282,68703.0,68702.0,0.000823]
[1730128622445,0.00606305,68706.0,68702.0,0.000823]
[1730128622710,0.00782,68706.0,68704.0,0.17087178]
[1730128622944,0.02182,68706.0,68704.0,0.17087178]
[1730128623424,0.02182,68706.0,68702.0,0.000823]
[1730128623660,0.02182,68706.0,68702.0,0.002823]
[1730128623907,0.00282,68704.0,68702.0,0.002823]
[1730128624129,0.148373,68704.0,68702.0,0.000823]
[1730128624342,0.158373,68704.0,68702.0,0.000823]
[1730128624606,0.01282,68704.0,68702.0,0.000823]
[1730128624849,0.01,68704.0,68702.0,0.000823]
[1730128625095,0.01,68704.0,68703.0,0.319554]
[1730128625587,0.01,68704.0,68703.0,0.324554]
[1730128625882,0.011,68704.0,68703.0,0.324554]
[1730128626123,0.024,68704.0,68703.0,0.324554]
[1730128626594,0.01,68704.0,68703.0,0.324554]
[1730128627316,0.01,68704.0,68703.0,0.328554]
[1730128627787,0.01,68704.0,68703.0,0.619661]
[1730128628036,0.011,68704.0,68703.0,0.619661]
[1730128628270,0.01,68704.0,68703.0,0.619661]
[1730128628509,0.011,68704.0,68703.0,0.619661]
[1730128628742,0.01,68704.0,68703.0,0.615661]
[1730128628989,0.01,68704.0,68703.0,0.179]
[1730128629226,0.01,68704.0,68703.0,0.324554]
[1730128629227,0.011,68704.0,68703.0,0.324554]
[1730128629465,0.012,68704.0,68703.0,0.326554]
[1730128629926,0.011,68704.0,68703.0,0.319554]
[1730128630153,0.011,68704.0,68703.0,0.174]
[1730128630413,0.012,68704.0,68703.0,0.179]
[1730128630637,0.012,68704.0,68703.0,0.324554]
[1730128630959,0.01,68704.0,68703.0,0.319554]
[1730128631285,0.011,68704.0,68703.0,0.319554]
[1730128631520,0.00282,68710.0,68704.0,0.145551]
[1730128631748,0.00282,68710.0,68703.0,0.465104]
[1730128631995,0.001,68704.0,68703.0,0.319554]
[1730128632229,0.002,68704.0,68703.0,0.326554]
[1730128632696,0.00282,68710.0,68703.0,0.174]
[1730128632926,0.01682,68710.0,68703.0,0.174]
[1730128633160,0.03082,68710.0,68704.0,0.14555]
[1730128633629,0.03082,68710.0,68703.0,0.466105]
[1730128633630,0.00282,68707.0,68703.0,0.175]
[1730128634082,0.00282,68705.0,68703.0,0.174]
[1730128634325,0.005,68704.0,68703.0,0.0959]
[1730128634554,0.006,68704.0,68703.0,0.0959]
[1730128634769,0.005,68704.0,68703.0,0.0959]
[1730128635938,0.006,68704.0,68703.0,0.0959]
[1730128636150,0.001,68704.0,68703.0,0.0959]
[1730128636360,0.007,68704.0,68703.0,0.1019]
[1730128636787,0.001,68704.0,68703.0,0.0959]
[1730128637000,0.006,68704.0,68703.0,0.0959]
[1730128637244,0.30387481,68704.0,68703.0,0.0959]
[1730128637461,0.30387481,68704.0,68702.0,0.000823]
[1730128637462,0.153374,68703.0,68702.0,0.000823]
[1730128637684,0.30494086,68703.0,68702.0,0.000823]
[1730128638821,0.31894086,68703.0,68702.0,0.000823]
[1730128639053,0.31787781,68703.0,68702.0,0.000823]
[1730128639758,0.17232381,68703.0,68702.0,0.000823]
[1730128639994,0.014,68703.0,68702.0,0.000823]
[1730128640227,0.028,68703.0,68702.0,0.147379]
[1730128641181,0.028,68703.0,68702.0,0.152379]
[1730128642097,0.001646,68711.0,68706.0,0.145547]
[1730128642327,0.001646,68711.0,68706.0,0.31641878]
[1730128643474,0.001646,68711.0,68706.0,0.17087178]
[1730128643726,0.148184,68711.0,68706.0,0.006]
[1730128643939,0.148184,68711.0,68706.0,0.007]
[1730128643940,0.148362,68709.0,68706.0,0.007]
[1730128644161,0.145543,68708.0,68706.0,0.007]
[1730128644620,0.00282,68709.0,68706.0,0.006]
[1730128644852,0.148362,68709.0,68706.0,0.006]
[1730128645080,0.00282,68709.0,68703.0,0.145553]
[1730128645300,0.145543,68708.0,68703.0,0.145553]
[1730128645533,0.145543,68708.0,68706.0,0.001]
[1730128645748,0.00282,68709.0,68706.0,0.001]
[1730128645749,0.145545,68707.0,68706.0,0.001]
[1730128645956,0.145546,68707.0,68702.0,0.17169478]
[1730128646183,0.145546,68707.0,68702.0,0.31724978]
[1730128646405,0.3709736,68704.0,68703.0,0.001]
[1730128646617,0.30387481,68704.0,68703.0,0.001]
[1730128646856,0.150554,68703.0,68702.0,0.000823]
[1730128647308,0.150554,68703.0,68702.0,0.001823]
[1730128647762,0.00782,68703.0,68702.0,0.001823]
[1730128647968,0.01782,68703.0,68702.0,0.001823]
[1730128648180,0.01782,68703.0,68702.0,0.002823]
[1730128648411,0.01782,68703.0,68702.0,0.001823]
[1730128648851,0.163374,68703.0,68702.0,0.004823]
[1730128649321,0.163374,68703.0,68702.0,0.001823]
[1730128649322,0.31387781,68703.0,68702.0,0.001823]
[1730128649824,0.32787781,68703.0,68702.0,0.001823]
[1730128650258,0.31887781,68703.0,68702.0,0.001823]
[1730128650495,0.33287781,68703.0,68702.0,0.001823]
[1730128650945,0.34687781,68703.0,68702.0,0.001823]
[1730128651628,0.33287781,68703.0,68702.0,0.001823]
[1730128651860,0.31887781,68703.0,68702.0,0.000823]
[1730128652315,0.33287781,68703.0,68702.0,0.001823]
[1730128652960,0.33287781,68703.0,68702.0,0.000823]
[1730128653168,0.48338162,68703.0,68702.0,0.001823]
[1730128653660,0.34687781,68703.0,68702.0,0.001823]
[1730128655026,0.34187781,68703.0,68702.0,0.001823]
[1730128656176,0.04582,68703.0,68702.0,0.001823]
[1730128656853,0.029,68703.0,68702.0,0.001823]
[1730128657305,0.02182,68703.0,68702.0,0.001823]
[1730128657556,0.014,68703.0,68702.0,0.147379]
[1730128657810,0.028,68703.0,68702.0,0.147379]
[1730128658045,0.014,68703.0,68702.0,0.15528963]
[1730128658265,0.001646,68710.0,68708.0,0.145542]
[1730128658490,0.2176026,68709.0,68708.0,0.17087178]
[1730128658721,0.001646,68710.0,68708.0,0.17087178]
[1730128658953,0.001646,68710.0,68704.0,0.46197478]
[1730128659164,0.001646,68710.0,68702.0,0.392435]
[1730128659165,0.00282,68709.0,68702.0,0.100323]
[1730128659389,0.148368,68706.0,68702.0,0.100323]
[1730128659602,0.162374,68703.0,68702.0,0.100323]
[1730128659859,0.162374,68703.0,68702.0,0.001823]
[1730128659860,0.158374,68703.0,68702.0,0.001823]
[1730128660306,0.00282,68703.0,68702.0,0.000823]
[1730128660516,0.148374,68703.0,68702.0,0.000823]
[1730128660939,0.162374,68703.0,68702.0,0.000823]
[1730128661430,0.31287781,68703.0,68702.0,0.000823]
[1730128661702,0.31287781,68703.0,68702.0,0.001823]
[1730128662369,0.31287781,68703.0,68702.0,0.000823]
[1730128663256,0.32687781,68703.0,68702.0,0.001823]
[1730128664193,0.18132381,68703.0,68702.0,0.001823]
[1730128664825,0.18132381,68703.0,68702.0,0.147379]
[1730128664826,0.028,68703.0,68702.0,0.147379]
[1730128665079,0.028,68703.0,68702.0,0.001823]
[1730128665555,0.028,68703.0,68702.0,0.326979]
[1730128666425,0.028,68703.0,68702.0,0.181423]
[1730128668764,0.03082,68703.0,68702.0,0.181423]
[1730128670749,0.176374,68703.0,68702.0,0.001823]
[1730128671180,0.03082,68703.0,68702.0,0.001823]
[1730128672461,0.028,68703.0,68702.0,0.001823]
[1730128672911,0.173554,68703.0,68702.0,0.001823]
[1730128673337,0.028,68703.0,68702.0,0.001823]
[1730128673759,0.173554,68703.0,68702.0,0.001823]
[1730128674201,0.33294086,68703.0,68702.0,0.001823]
[1730128674405,0.58187781,68703.0,68702.0,0.001823]
[1730128678346,0.18350381,68703.0,68702.0,0.001823]
[1730128678596,0.18350381,68703.0,68702.0,0.39695078]
[1730128678597,0.033,68703.0,68702.0,0.39695078]
[1730128678809,0.028,68703.0,68702.0,0.39695078]
[1730128682580,0.028,68703.0,68702.0,0.44771602]
[1730128682826,0.028,68703.0,68702.0,0.65214819]
[1730128683275,0.028,68703.0,68702.0,0.49130126]
[1730128683511,0.001646,68710.0,68709.0,0.145541]
[1730128683730,0.001646,68710.0,68709.0,0.41441278]
[1730128684727,0.002646,68710.0,68709.0,0.42041278]
[1730128684971,0.002646,68710.0,68709.0,0.104]
[1730128685178,0.002646,68710.0,68709.0,0.42041278]
[1730128685414,0.002646,68710.0,68709.0,0.67446456]
[1730128685644,0.002646,68710.0,68709.0,0.92496837]
[1730128685871,0.002646,68710.0,68709.0,1.0857416]
[1730128686096,0.001646,68711.0,68710.0,0.436119]
[1730128686336,0.001646,68711.0,68710.0,0.59689223]
[1730128686561,0.001646,68711.0,68710.0,0.70771426]
[1730128686811,0.001646,68711.0,68710.0,0.59889223]
[1730128687326,0.001646,68711.0,68710.0,0.74939604]
[1730128687548,0.2176026,68731.0,68730.0,0.145496]
[1730128687800,0.2176026,68731.0,68730.0,0.49441956]
[1730128688001,0.005,68745.0,68737.0,0.145482]
[1730128688246,0.00282,68748.0,68737.0,0.145482]
[1730128688247,0.005,68746.0,68737.0,0.39725378]
[1730128688499,0.2176026,68750.0,68740.0,0.290951]
[1730128688714,0.2176026,68750.0,68749.0,0.31632778]
[1730128688942,0.2176026,68750.0,68749.0,0.17087178]
[1730128689169,0.00782,68754.0,68749.0,0.17087178]
[1730128689396,0.005,68751.0,68746.0,0.145461]
[1730128689624,0.005,68751.0,68744.0,0.290934]
[1730128689625,0.005,68751.0,68748.0,0.17087178]
[1730128689851,0.005,68751.0,68749.0,0.001]
[1730128690299,0.005,68751.0,68745.0,0.12414506]
[1730128690526,0.005,68751.0,68749.0,0.001]
[1730128690791,0.005,68751.0,68745.0,0.12414506]
[1730128690997,0.005,68751.0,68748.0,0.002]
[1730128691460,0.005,68751.0,68745.0,0.12414506]
[1730128691902,0.005,68751.0,68744.0,0.17087178]
[1730128691903,0.2176026,68750.0,68744.0,0.17087178]
[1730128692151,0.2176026,68750.0,68741.0,0.005]
[1730128692152,0.00282,68749.0,68741.0,0.005]
[1730128692386,0.145464,68746.0,68740.0,0.17087178]
[1730128692824,0.145471,68742.0,68738.0,0.1045]
[1730128693037,0.00282,68745.0,68738.0,0.1045]
[1730128693038,0.005,68743.0,68738.0,0.1045]
[1730128693259,0.15047,68743.0,68738.0,0.1045]
[1730128693713,0.005,68743.0,68740.0,0.002]
[1730128694137,0.150469,68743.0,68738.0,0.1045]
[1730128694356,0.150469,68743.0,68738.0,0.1065]
[1730128694596,0.150469,68743.0,68738.0,0.1095]
[1730128695126,0.005,68743.0,68738.0,0.1095]
[1730128695348,0.005,68742.0,68738.0,0.1095]
[1730128695567,0.298764,68742.0,68738.0,0.1075]
[1730128695785,0.00782,68742.0,68738.0,0.1075]
[1730128696002,0.153292,68742.0,68740.0,0.001]
[1730128696219,0.00782,68742.0,68738.0,0.1045]
[1730128696655,0.00782,68742.0,68738.0,0.10599724]
[1730128696867,0.2176026,68741.0,68738.0,0.10499724]
[1730128697103,0.2176026,68741.0,68736.0,0.17087178]
[1730128697104,0.150477,68740.0,68736.0,0.17087178]
[1730128697317,0.005,68740.0,68736.0,0.145482]
[1730128697567,0.005,68740.0,68738.0,0.001]
[1730128698883,0.005,68740.0,68736.0,0.17087178]
[1730128699098,0.005,68740.0,68738.0,0.001]
[1730128699535,0.005,68740.0,68736.0,0.17187178]
[1730128699980,0.005,68740.0,68736.0,0.17087178]
[1730128700223,0.005,68740.0,68738.0,0.001]
[1730128700446,0.005,68740.0,68738.0,0.002]
[1730128700886,0.005,68740.0,68738.0,0.001]
[1730128701134,0.005,68740.0,68736.0,0.31635378]
[1730128701356,0.005,68740.0,68736.0,0.31635578]
[1730128701619,0.005,68740.0,68736.0,0.17087178]
[1730128702052,0.01,68738.0,68736.0,0.31635478]
[1730128702504,0.01,68738.0,68736.0,0.31735478]
[1730128702786,0.01,68738.0,68736.0,0.17587178]
[1730128703011,0.01,68738.0,68736.0,0.32535478]
[1730128703230,0.01,68738.0,68736.0,0.31635478]
[1730128703451,0.01,68738.0,68736.0,0.17087178]
[1730128703680,0.01,68738.0,68736.0,0.17887178]
[1730128704820,0.30380581,68737.0,68736.0,0.008]
[1730128705036,0.30486886,68737.0,68736.0,0.008]
[1730128705283,0.55486886,68737.0,68736.0,0.008]
[1730128705512,0.64058121,68737.0,68736.0,0.004]
[1730128705733,0.64058121,68737.0,68716.0,0.083]
[1730128705734,0.00282,68722.0,68716.0,0.083]
[1730128705964,0.00282,68722.0,68711.0,0.3631386]
[1730128705965,0.145515,68721.0,68711.0,0.2176026]
[1730128706192,0.00282,68716.0,68711.0,0.2176026]
[1730128706439,0.00282,68712.0,68711.0,0.2176026]
[1730128706659,0.29885781,68712.0,68711.0,0.2176026]
[1730128706878,0.29885781,68712.0,68704.0,0.0759]
[1730128706879,0.15332381,68712.0,68705.0,0.2176026]
[1730128707103,0.15332381,68712.0,68707.0,0.145544]
[1730128707321,0.15332381,68712.0,68705.0,0.145547]
[1730128707550,0.15332381,68712.0,68705.0,0.005]
[1730128707551,0.00282,68711.0,68705.0,0.005]
[1730128707844,0.00282,68711.0,68704.0,0.24677178]
[1730128707845,0.00282,68711.0,68706.0,0.145547]
[1730128708043,0.00282,68711.0,68704.0,0.25177178]
[1730128708299,0.00282,68711.0,68708.0,0.145543]
[1730128708533,0.00282,68711.0,68706.0,0.291095]
[1730128708772,0.2226026,68719.0,68713.0,0.145532]
[1730128709016,0.005,68724.0,68715.0,0.17087178]
[1730128709251,0.2176026,68728.0,68726.0,0.17087178]
[1730128709482,0.2176026,68728.0,68717.0,0.00218]
[1730128709483,0.148335,68721.0,68716.0,0.075]
[1730128709721,0.00282,68721.0,68716.0,0.075]
[1730128709960,0.005,68724.0,68718.0,0.17087178]
[1730128710204,0.00282,68730.0,68724.0,0.145509]
[1730128710205,0.005,68727.0,68724.0,0.145509]
[1730128710461,0.005,68724.0,68716.0,0.366049]
[1730128710691,0.005,68724.0,68718.0,0.291041]
[1730128710927,0.005,68724.0,68720.0,0.145517]
[1730128711611,0.005,68724.0,68717.0,0.17087178]
[1730128711612,0.00282,68723.0,68717.0,0.17087178]
[1730128711838,0.00282,68723.0,68716.0,0.082]
[1730128712057,0.00282,68722.0,68716.0,0.075]
[1730128712293,0.005,68718.0,68711.0,0.291072]
[1730128712521,0.005,68718.0,68710.0,0.0972]
[1730128712522,0.005,68712.0,68710.0,0.0972]
[1730128712753,0.00782,68711.0,68705.0,0.2176026]
[1730128712989,0.14554,68710.0,68705.0,0.2176026]
[1730128713217,0.14554,68710.0,68702.0,0.146377]
[1730128713218,0.145541,68710.0,68703.0,0.145554]
[1730128713440,0.005,68706.0,68702.0,0.146378]
[1730128713670,0.145551,68705.0,68702.0,0.000823]
[1730128713918,0.150553,68704.0,68702.0,0.000823]
[1730128714419,0.005,68703.0,68702.0,0.000823]
[1730128714879,0.153374,68703.0,68702.0,0.000823]
[1730128715121,0.15319891,68703.0,68702.0,0.000823]
[1730128715367,0.30370272,68703.0,68702.0,0.000823]
[1730128715602,0.30370272,68703.0,68702.0,0.012823]
[1730128716070,0.30370272,68703.0,68702.0,0.013823]
[1730128716314,0.30370272,68703.0,68702.0,0.002823]
[1730128716555,0.31770272,68703.0,68702.0,0.002823]
[1730128716997,0.31770272,68703.0,68702.0,0.000823]
[1730128717209,0.33170272,68703.0,68702.0,0.000823]
[1730128717435,0.31270272,68703.0,68702.0,0.000823]
[1730128718403,0.29870272,68703.0,68702.0,0.000823]
[1730128718634,0.29870272,68703.0,68702.0,0.001823]
[1730128718868,0.32170272,68703.0,68702.0,0.002823]
[1730128730356,0.32170272,68703.0,68702.0,0.002823]
[1730128731599,0.57170272,68703.0,68702.0,0.002823]
[1730128731806,0.78894872,68703.0,68702.0,0.002823]
[1730128732011,0.78894872,68703.0,68691.0,0.000823]
[1730128732012,0.413397,68692.0,68691.0,0.000823]
[1730128732236,1.19214659,68692.0,68691.0,0.000823]
[1730128732440,1.3085424,68692.0,68691.0,0.000823]
[1730128732852,1.15803859,68692.0,68691.0,0.000823]
[1730128733096,0.90803859,68692.0,68691.0,0.000823]
[1730128733288,0.91903859,68692.0,68691.0,0.001823]
[1730128733614,0.82472859,68692.0,68691.0,0.001823]
[1730128733814,1.01305659,68692.0,68691.0,0.002823]
[1730128733955,0.88077259,68692.0,68691.0,0.002823]
[1730128734155,0.88620231,68692.0,68691.0,0.002823]
[1730128734733,0.87520231,68692.0,68691.0,0.001823]
[1730128735112,0.87520231,68692.0,68691.0,0.000823]
[1730128735113,0.88920231,68692.0,68691.0,0.000823]
[1730128735255,0.87720231,68692.0,68691.0,0.000823]
[1730128735470,0.89120231,68692.0,68691.0,0.000823]
[1730128735686,0.72033053,68692.0,68691.0,0.000823]
[1730128735890,0.68190081,68692.0,68691.0,0.000823]
[1730128736350,0.68190081,68692.0,68675.0,0.3632136]
[1730128736351,0.00282,68683.0,68682.0,0.2083636]
[1730128736560,0.29891981,68683.0,68682.0,0.2083636]
[1730128736804,0.15332381,68683.0,68681.0,0.0955]
[1730128736990,0.29891981,68683.0,68682.0,0.0763]
[1730128737204,0.29891981,68683.0,68682.0,0.06929132]
[1730128737428,0.15050381,68683.0,68682.0,0.06929132]
[1730128737646,0.00141324,68685.0,68682.0,0.06929132]
[1730128737856,0.00141324,68683.0,68682.0,0.06929132]
[1730128738092,0.16100924,68683.0,68682.0,0.06929132]
[1730128738305,0.01541324,68683.0,68682.0,0.06929132]
[1730128738540,0.16100924,68683.0,68682.0,0.06929132]
[1730128739386,0.17500924,68683.0,68682.0,0.06929132]
[1730128739603,0.16100924,68683.0,68682.0,0.06929132]
[1730128739874,0.17500924,68683.0,68682.0,0.06929132]
[1730128741436,0.3265761,68683.0,68682.0,0.06929132]
[1730128741653,0.3265761,68683.0,68681.0,0.0955]
[1730128741654,0.14701124,68682.0,68681.0,0.0955]
[1730128741884,0.2985781,68682.0,68681.0,0.0955]
[1730128742110,0.1529801,68682.0,68680.0,0.00046024]
[1730128742352,0.29610381,68681.0,68680.0,0.00046024]
[1730128742579,0.29716686,68681.0,68680.0,0.00046024]
[1730128742790,0.2985801,68681.0,68680.0,0.00046024]
[1730128743256,0.1529801,68681.0,68680.0,0.00046024]
[1730128743468,0.14701324,68681.0,68680.0,0.00046024]
[1730128743705,0.00141324,68681.0,68680.0,0.00046024]
[1730128743916,0.14701324,68681.0,68680.0,0.00046024]
[1730128744356,0.29751705,68681.0,68680.0,0.00046024]
[1730128744622,0.2985801,68681.0,68680.0,0.00046024]
[1730128744859,0.3265801,68681.0,68680.0,0.00046024]
[1730128745068,0.32551705,68681.0,68680.0,0.00046024]
[1730128745505,0.31151705,68681.0,68680.0,0.00046024]
[1730128745753,0.43751705,68681.0,68680.0,0.00046024]
[1730128745985,0.45507408,68681.0,68680.0,0.00046024]
[1730128746253,0.46907408,68681.0,68680.0,0.00046024]
[1730128746691,0.34607408,68681.0,68680.0,0.00046024]